[Event "Titled Tuesday Blitz July 13 2021"]
[White "Maksimovic, Bojan"]
[Black "Tologon tegin, Semetei"]
[WhiteFideId "14408120"]
[BlackFideId "13800574"]
[WhiteElo "2439"]
[BlackElo "2224"]
[Result "1-0"]
[Round "05"]
[TimeControl "180+1"]
[Date "2021.07.13"]
[WhiteClock "0:00:53"]
[BlackClock "0:00:41"]

1. e4 {[%clk 0:03:00]}  c5 {[%clk 0:02:57]} 2. Nf3 {[%clk 0:03:00]}  d6 {[%clk 0:02:54]} 3. d4 {[%clk 0:03:00]}  cxd4 {[%clk 0:02:51]} 4. Nxd4 {[%clk 0:03:01]}  Nf6 {[%clk 0:02:52]} 5. Nc3 {[%clk 0:03:02]}  g6 {[%clk 0:02:52]} 6. Be3 {[%clk 0:03:01]}  Bg7 {[%clk 0:02:52]} 7. f3 {[%clk 0:03:02]}  O-O {[%clk 0:02:53]} 8. Qd2 {[%clk 0:03:03]}  Nc6 {[%clk 0:02:53]} 9. O-O-O {[%clk 0:03:01]}  d5 {[%clk 0:02:53]} 10. exd5 {[%clk 0:02:51]}  Nxd5 {[%clk 0:02:54]} 11. Nxc6 {[%clk 0:02:51]}  bxc6 {[%clk 0:02:53]} 12. Bd4 {[%clk 0:02:51]}  Bxd4 {[%clk 0:02:48]} 13. Qxd4 {[%clk 0:02:51]}  Qc7 {[%clk 0:02:45]} 14. Bc4 {[%clk 0:02:44]}  Nb6 {[%clk 0:02:39]} 15. Rhe1 {[%clk 0:01:39]}  e5 {[%clk 0:02:22]} 16. Qc5 {[%clk 0:01:13]}  Nd7 {[%clk 0:01:38]} 17. Qd6 {[%clk 0:01:09]}  Qb6 {[%clk 0:01:37]} 18. Bb3 {[%clk 0:01:03]}  a5 {[%clk 0:01:35]} 19. Na4 {[%clk 0:01:01]}  Qb5 {[%clk 0:01:30]} 20. Kb1 {[%clk 0:00:38]}  Rb8 {[%clk 0:00:57]} 21. h4 {[%clk 0:00:38]}  Ra8 {[%clk 0:00:22]} 22. h5 {[%clk 0:00:36]}  Kg7 {[%clk 0:00:22]} 23. hxg6 {[%clk 0:00:33]}  hxg6 {[%clk 0:00:23]} 24. Rh1 {[%clk 0:00:25]}  Nf6 {[%clk 0:00:17]} 25. Nc3 {[%clk 0:00:19]}  Qb8 {[%clk 0:00:16]} 26. Qxb8 {[%clk 0:00:10]}  Rxb8 {[%clk 0:00:15]} 27. Rhe1 {[%clk 0:00:11]}  Re8 {[%clk 0:00:15]} 28. g4 {[%clk 0:00:10]}  Be6 {[%clk 0:00:15]} 29. Bxe6 {[%clk 0:00:06]}  Rxe6 {[%clk 0:00:15]} 30. g5 {[%clk 0:00:06]}  Nh5 {[%clk 0:00:15]} 31. Ne4 {[%clk 0:00:06]}  Nf4 {[%clk 0:00:14]} 32. Rd7 {[%clk 0:00:07]}  Nh3 {[%clk 0:00:11]} 33. Rh1 {[%clk 0:00:06]}  Nf4 {[%clk 0:00:10]} 34. Rhd1 {[%clk 0:00:06]}  Rh8 {[%clk 0:00:10]} 35. Nd6 {[%clk 0:00:05]}  Rf8 {[%clk 0:00:09]} 36. Ne4 {[%clk 0:00:05]}  Nd5 {[%clk 0:00:09]} 37. c4 {[%clk 0:00:04]}  Ne3 {[%clk 0:00:09]} 38. Rc1 {[%clk 0:00:05]}  Nf5 {[%clk 0:00:10]} 39. Ra7 {[%clk 0:00:05]}  Nd4 {[%clk 0:00:09]} 40. Rxa5 {[%clk 0:00:05]}  Nxf3 {[%clk 0:00:09]} 41. Rf1 {[%clk 0:00:05]}  Nd4 {[%clk 0:00:08]} 42. Ra7 {[%clk 0:00:05]}  Nf5 {[%clk 0:00:08]} 43. b3 {[%clk 0:00:05]}  Re7 {[%clk 0:00:07]} 44. Rxe7 {[%clk 0:00:04]}  Nxe7 {[%clk 0:00:08]} 45. Rf6 {[%clk 0:00:04]}  Rd8 {[%clk 0:00:08]} 46. Nd6 {[%clk 0:00:04]}  Rf8 {[%clk 0:00:06]} 47. Kc2 {[%clk 0:00:04]}  Ng8 {[%clk 0:00:06]} 48. Rf1 {[%clk 0:00:04]}  f6 {[%clk 0:00:07]} 49. gxf6+ {[%clk 0:00:04]}  Nxf6 {[%clk 0:00:07]} 50. a4 {[%clk 0:00:03]}  Rd8 {[%clk 0:00:08]} 51. Nb7 {[%clk 0:00:02]}  Rd7 {[%clk 0:00:08]} 52. Nc5 {[%clk 0:00:03]}  Re7 {[%clk 0:00:07]} 53. a5 {[%clk 0:00:03]}  e4 {[%clk 0:00:07]} 54. a6 {[%clk 0:00:03]}  e3 {[%clk 0:00:08]} 55. Re1 {[%clk 0:00:04]}  Ng4 {[%clk 0:00:08]} 56. Kd3 {[%clk 0:00:04]}  Nf2+ {[%clk 0:00:08]} 57. Ke2 {[%clk 0:00:05]}  Ng4 {[%clk 0:00:08]} 58. Ra1 {[%clk 0:00:04]}  Ra7 {[%clk 0:00:07]} 59. Kf3 {[%clk 0:00:05]}  Ne5+ {[%clk 0:00:06]} 60. Kxe3 {[%clk 0:00:06]}  Kf6 {[%clk 0:00:06]} 61. Ke4 {[%clk 0:00:05]}  Nf7 {[%clk 0:00:07]} 62. Rf1+ {[%clk 0:00:05]}  Ke7 {[%clk 0:00:07]} 63. Kd4 {[%clk 0:00:06]}  Kd6 {[%clk 0:00:06]} 64. Rf6+ {[%clk 0:00:05]}  Ke7 {[%clk 0:00:07]} 65. Rxg6 {[%clk 0:00:05]}  Kf8 {[%clk 0:00:06]} 66. Rf6 {[%clk 0:00:06]}  Kg7 {[%clk 0:00:06]} 67. Rxc6 {[%clk 0:00:06]}  Nd8 {[%clk 0:00:06]} 68. Rb6 {[%clk 0:00:06]}  Kf7 {[%clk 0:00:06]} 69. Rb7+ {[%clk 0:00:06]}  Nxb7 {[%clk 0:00:06]} 70. axb7 {[%clk 0:00:07]}  Rxb7 {[%clk 0:00:05]} 71. Nxb7 {[%clk 0:00:08]}  Ke7 {[%clk 0:00:06]} 72. Nc5 {[%clk 0:00:08]}  Kd6 {[%clk 0:00:06]} 73. b4 {[%clk 0:00:09]}  Kc7 {[%clk 0:00:07]} 74. b5 {[%clk 0:00:10]}  Kb6 {[%clk 0:00:08]} 75. Nd3 {[%clk 0:00:11]}  Kc7 {[%clk 0:00:08]} 76. Kc5 {[%clk 0:00:11]}  Kb7 {[%clk 0:00:09]} 77. Kb4 {[%clk 0:00:12]}  Kc7 {[%clk 0:00:10]} 78. c5 {[%clk 0:00:13]}  Kb7 {[%clk 0:00:11]} 79. Nb2 {[%clk 0:00:14]}  Kc7 {[%clk 0:00:12]} 80. Nd1 {[%clk 0:00:14]}  Kb7 {[%clk 0:00:09]} 81. Nf2 {[%clk 0:00:15]}  Kc7 {[%clk 0:00:10]} 82. Nh1 {[%clk 0:00:16]}  Kb7 {[%clk 0:00:10]} 83. Ng3 {[%clk 0:00:17]}  Kc7 {[%clk 0:00:11]} 84. Ne2 {[%clk 0:00:18]}  Kb7 {[%clk 0:00:12]} 85. Nd4 {[%clk 0:00:19]}  Kc7 {[%clk 0:00:12]} 86. Kc4 {[%clk 0:00:20]}  Kb7 {[%clk 0:00:13]} 87. Kd5 {[%clk 0:00:21]}  Kc7 {[%clk 0:00:14]} 88. b6+ {[%clk 0:00:21]}  Kb7 {[%clk 0:00:14]} 89. Nc2 {[%clk 0:00:22]}  Kb8 {[%clk 0:00:15]} 90. Nb4 {[%clk 0:00:23]}  Kb7 {[%clk 0:00:15]} 91. Kc4 {[%clk 0:00:24]}  Kb8 {[%clk 0:00:16]} 92. Kb5 {[%clk 0:00:25]}  Kb7 {[%clk 0:00:17]} 93. c6+ {[%clk 0:00:26]}  Kb8 {[%clk 0:00:18]} 94. Kc5 {[%clk 0:00:27]}  Kc8 {[%clk 0:00:19]} 95. Nd3 {[%clk 0:00:28]}  Kb8 {[%clk 0:00:19]} 96. Nf2 {[%clk 0:00:29]}  Kc8 {[%clk 0:00:20]} 97. Nd1 {[%clk 0:00:30]}  Kb8 {[%clk 0:00:21]} 98. Ne3 {[%clk 0:00:30]}  Kc8 {[%clk 0:00:22]} 99. Nf1 {[%clk 0:00:31]}  Kb8 {[%clk 0:00:23]} 100. Ng3 {[%clk 0:00:32]}  Ka8 {[%clk 0:00:24]} 101. Nh1 {[%clk 0:00:33]}  Kb8 {[%clk 0:00:25]} 102. Nf2 {[%clk 0:00:34]}  Ka8 {[%clk 0:00:26]} 103. Nh3 {[%clk 0:00:35]}  Kb8 {[%clk 0:00:27]} 104. Nf4 {[%clk 0:00:36]}  Ka8 {[%clk 0:00:27]} 105. Nh5 {[%clk 0:00:37]}  Kb8 {[%clk 0:00:28]} 106. Nf6 {[%clk 0:00:38]}  Ka8 {[%clk 0:00:27]} 107. Ng8 {[%clk 0:00:39]}  Kb8 {[%clk 0:00:28]} 108. Nh6 {[%clk 0:00:39]}  Ka8 {[%clk 0:00:29]} 109. Nf5 {[%clk 0:00:40]}  Kb8 {[%clk 0:00:30]} 110. Kd5 {[%clk 0:00:41]}  Ka8 {[%clk 0:00:31]} 111. Ke6 {[%clk 0:00:42]}  Kb8 {[%clk 0:00:32]} 112. Kf7 {[%clk 0:00:43]}  Ka8 {[%clk 0:00:33]} 113. Kg6 {[%clk 0:00:44]}  Kb8 {[%clk 0:00:34]} 114. Kg5 {[%clk 0:00:45]}  Ka8 {[%clk 0:00:35]} 115. Kf4 {[%clk 0:00:46]}  Kb8 {[%clk 0:00:35]} 116. Ke5 {[%clk 0:00:47]}  Ka8 {[%clk 0:00:36]} 117. Kd6 {[%clk 0:00:48]}  Kb8 {[%clk 0:00:37]} 118. Kd7 {[%clk 0:00:48]}  Ka8 {[%clk 0:00:38]} 119. Ng3 {[%clk 0:00:49]}  Kb8 {[%clk 0:00:37]} 120. Ne2 {[%clk 0:00:50]}  Ka8 {[%clk 0:00:38]} 121. Ng1 {[%clk 0:00:51]}  Kb8 {[%clk 0:00:39]} 122. Nf3 {[%clk 0:00:52]}  Ka8 {[%clk 0:00:40]} 123. Nh2 {[%clk 0:00:53]}  Kb8 {[%clk 0:00:41]} 124. c7+ {[%clk 0:00:53]}  Ka8 {[%clk 0:00:41]} 125. c8=Q# {[%clk 0:00:53]} 1-0


[Site "https://www.chess.com"]

[Event "Titled Tuesday Blitz July 13 2021"]
[White "Mezentsev, Ivan"]
[Black "Altman, Joshua"]
[WhiteFideId "13706195"]
[BlackFideId "426210"]
[WhiteElo "2295"]
[BlackElo "1945"]
[Result "0-1"]
[Round "05"]
[TimeControl "180+1"]
[Date "2021.07.13"]
[WhiteClock "0:00:01"]
[BlackClock "0:00:03"]

1. d4 {[%clk 0:03:00]}  e6 {[%clk 0:03:00]} 2. Nf3 {[%clk 0:02:59]}  Nf6 {[%clk 0:03:00]} 3. Bf4 {[%clk 0:02:59]}  b6 {[%clk 0:03:00]} 4. e3 {[%clk 0:02:58]}  Bb7 {[%clk 0:03:01]} 5. Be2 {[%clk 0:02:57]}  Be7 {[%clk 0:03:01]} 6. h3 {[%clk 0:02:57]}  O-O {[%clk 0:03:02]} 7. O-O {[%clk 0:02:56]}  c5 {[%clk 0:03:03]} 8. c3 {[%clk 0:02:56]}  cxd4 {[%clk 0:03:03]} 9. exd4 {[%clk 0:02:55]}  d6 {[%clk 0:03:04]} 10. a4 {[%clk 0:02:53]}  a6 {[%clk 0:03:03]} 11. Re1 {[%clk 0:02:53]}  Nbd7 {[%clk 0:03:03]} 12. Na3 {[%clk 0:02:49]}  h6 {[%clk 0:02:52]} 13. Qb3 {[%clk 0:02:41]}  Qc7 {[%clk 0:02:45]} 14. Bh2 {[%clk 0:02:37]}  Rfe8 {[%clk 0:02:41]} 15. Nd2 {[%clk 0:02:34]}  Bf8 {[%clk 0:02:33]} 16. Bf3 {[%clk 0:02:32]}  Rac8 {[%clk 0:02:24]} 17. Bxb7 {[%clk 0:02:27]}  Qxb7 {[%clk 0:02:25]} 18. Nac4 {[%clk 0:02:25]}  Qc6 {[%clk 0:02:21]} 19. Ne3 {[%clk 0:02:21]}  b5 {[%clk 0:02:15]} 20. axb5 {[%clk 0:02:19]}  axb5 {[%clk 0:02:16]} 21. Ra5 {[%clk 0:01:48]}  Rb8 {[%clk 0:02:15]} 22. Rea1 {[%clk 0:01:47]}  Rb7 {[%clk 0:01:26]} 23. Ra6 {[%clk 0:01:43]}  Rb6 {[%clk 0:01:25]} 24. Rxb6 {[%clk 0:01:39]}  Qxb6 {[%clk 0:01:22]} 25. Qa2 {[%clk 0:01:17]}  b4 {[%clk 0:01:07]} 26. Ndc4 {[%clk 0:01:16]}  Qb5 {[%clk 0:00:59]} 27. Qa6 {[%clk 0:01:14]}  Qxa6 {[%clk 0:00:57]} 28. Rxa6 {[%clk 0:01:13]}  bxc3 {[%clk 0:00:58]} 29. bxc3 {[%clk 0:01:13]}  d5 {[%clk 0:00:54]} 30. Nd2 {[%clk 0:01:04]}  Rc8 {[%clk 0:00:52]} 31. Nd1 {[%clk 0:00:49]}  g6 {[%clk 0:00:39]} 32. Kf1 {[%clk 0:00:49]}  Kg7 {[%clk 0:00:28]} 33. Ke2 {[%clk 0:00:48]}  Be7 {[%clk 0:00:28]} 34. Kd3 {[%clk 0:00:47]}  Bf8 {[%clk 0:00:28]} 35. f3 {[%clk 0:00:40]}  Kg8 {[%clk 0:00:28]} 36. g4 {[%clk 0:00:39]}  Be7 {[%clk 0:00:28]} 37. Ne3 {[%clk 0:00:34]}  Ne8 {[%clk 0:00:25]} 38. c4 {[%clk 0:00:30]}  dxc4+ {[%clk 0:00:25]} 39. Ndxc4 {[%clk 0:00:29]}  Nef6 {[%clk 0:00:24]} 40. Ra7 {[%clk 0:00:24]}  Rd8 {[%clk 0:00:24]} 41. Bc7 {[%clk 0:00:21]}  Rc8 {[%clk 0:00:24]} 42. Bg3 {[%clk 0:00:19]}  Rd8 {[%clk 0:00:24]} 43. Bc7 {[%clk 0:00:18]}  Rc8 {[%clk 0:00:24]} 44. Bd6 {[%clk 0:00:18]}  Bxd6 {[%clk 0:00:21]} 45. Nxd6 {[%clk 0:00:18]}  Rc6 {[%clk 0:00:22]} 46. Nec4 {[%clk 0:00:16]}  Nb6 {[%clk 0:00:20]} 47. Nxb6 {[%clk 0:00:15]}  Rxb6 {[%clk 0:00:20]} 48. Nxf7 {[%clk 0:00:14]}  Rb3+ {[%clk 0:00:19]} 49. Kc4 {[%clk 0:00:14]}  Rxf3 {[%clk 0:00:18]} 50. Nxh6+ {[%clk 0:00:14]}  Kh8 {[%clk 0:00:18]} 51. Nf7+ {[%clk 0:00:14]}  Kg8 {[%clk 0:00:19]} 52. Ne5 {[%clk 0:00:13]}  Rxh3 {[%clk 0:00:19]} 53. Nxg6 {[%clk 0:00:13]}  Nxg4 {[%clk 0:00:19]} 54. Nf4 {[%clk 0:00:13]}  Re3 {[%clk 0:00:18]} 55. Re7 {[%clk 0:00:12]}  Nf6 {[%clk 0:00:16]} 56. Nxe6 {[%clk 0:00:11]}  Re4 {[%clk 0:00:10]} 57. Kc5 {[%clk 0:00:10]}  Re1 {[%clk 0:00:07]} 58. d5 {[%clk 0:00:09]}  Rc1+ {[%clk 0:00:07]} 59. Kd6 {[%clk 0:00:09]}  Rd1 {[%clk 0:00:08]} 60. Nc7 {[%clk 0:00:09]}  Rd2 {[%clk 0:00:05]} 61. Re6 {[%clk 0:00:05]}  Nh5 {[%clk 0:00:03]} 62. Ke7 {[%clk 0:00:04]}  Nf4 {[%clk 0:00:03]} 63. Rd6 {[%clk 0:00:03]}  Re2+ {[%clk 0:00:04]} 64. Kd7 {[%clk 0:00:03]}  Rd2 {[%clk 0:00:04]} 65. Kc6 {[%clk 0:00:02]}  Nd3 {[%clk 0:00:03]} 66. Rd8+ {[%clk 0:00:02]}  Kf7 {[%clk 0:00:03]} 67. Rd7+ {[%clk 0:00:02]}  Kf8 {[%clk 0:00:04]} 68. Rd8+ {[%clk 0:00:02]}  Kf7 {[%clk 0:00:04]} 69. Re8 {[%clk 0:00:02]}  Nb4+ {[%clk 0:00:03]} 70. Kd6 {[%clk 0:00:01]}  Nxd5 {[%clk 0:00:03]} 71. Re5 {[%clk 0:00:01]}  Nxc7+ {[%clk 0:00:03]} 72. Kxc7 {[%clk 0:00:01]}  Rc2+ {[%clk 0:00:03]} 0-1


[Site "https://www.chess.com"]

[Event "Titled Tuesday Blitz July 13 2021"]
[White "Moskalenko, Alexander"]
[Black "Nguyen, Hong Ngoc"]
[WhiteFideId "4155351"]
[BlackFideId "12403083"]
[WhiteElo "2495"]
[BlackElo "1830"]
[Result "1-0"]
[Round "05"]
[TimeControl "180+1"]
[Date "2021.07.13"]
[WhiteClock "0:00:06"]
[BlackClock "0:00:07"]

1. g3 {[%clk 0:03:00]}  f5 {[%clk 0:02:59]} 2. Bg2 {[%clk 0:03:01]}  Nf6 {[%clk 0:02:59]} 3. d3 {[%clk 0:02:59]}  e6 {[%clk 0:03:00]} 4. c4 {[%clk 0:02:58]}  Nc6 {[%clk 0:02:59]} 5. Nf3 {[%clk 0:02:53]}  d6 {[%clk 0:02:56]} 6. O-O {[%clk 0:02:49]}  Be7 {[%clk 0:02:56]} 7. Nc3 {[%clk 0:02:49]}  O-O {[%clk 0:02:56]} 8. Rb1 {[%clk 0:02:50]}  e5 {[%clk 0:02:56]} 9. b4 {[%clk 0:02:50]}  Qe8 {[%clk 0:02:56]} 10. b5 {[%clk 0:02:49]}  Nd8 {[%clk 0:02:56]} 11. a3 {[%clk 0:02:48]}  Qh5 {[%clk 0:02:55]} 12. Bg5 {[%clk 0:02:45]}  h6 {[%clk 0:02:38]} 13. Bxf6 {[%clk 0:02:44]}  Bxf6 {[%clk 0:02:39]} 14. Nd5 {[%clk 0:02:44]}  Ne6 {[%clk 0:02:39]} 15. Nxf6+ {[%clk 0:02:40]}  Rxf6 {[%clk 0:02:37]} 16. e3 {[%clk 0:02:41]}  Qe8 {[%clk 0:02:24]} 17. d4 {[%clk 0:02:29]}  e4 {[%clk 0:02:24]} 18. Nd2 {[%clk 0:02:28]}  a5 {[%clk 0:02:20]} 19. h4 {[%clk 0:02:18]}  Rb8 {[%clk 0:02:16]} 20. c5 {[%clk 0:02:13]}  dxc5 {[%clk 0:02:11]} 21. dxc5 {[%clk 0:01:59]}  Nxc5 {[%clk 0:02:10]} 22. Nb3 {[%clk 0:01:59]}  Nd3 {[%clk 0:01:47]} 23. Nxa5 {[%clk 0:01:58]}  Be6 {[%clk 0:01:43]} 24. Qc2 {[%clk 0:01:49]}  Qe7 {[%clk 0:01:39]} 25. a4 {[%clk 0:01:41]}  g5 {[%clk 0:01:24]} 26. hxg5 {[%clk 0:01:40]}  hxg5 {[%clk 0:01:25]} 27. Nb3 {[%clk 0:01:41]}  Rh6 {[%clk 0:01:18]} 28. Nd4 {[%clk 0:01:40]}  Rh8 {[%clk 0:01:10]} 29. Rfd1 {[%clk 0:01:32]}  Nc5 {[%clk 0:00:26]} 30. Nxe6 {[%clk 0:01:19]}  Nxe6 {[%clk 0:00:26]} 31. Rd5 {[%clk 0:01:19]}  Rf8 {[%clk 0:00:24]} 32. Qc4 {[%clk 0:01:19]}  b6 {[%clk 0:00:20]} 33. Rbd1 {[%clk 0:01:18]}  Rh6 {[%clk 0:00:18]} 34. Rd7 {[%clk 0:01:17]}  Qf6 {[%clk 0:00:13]} 35. Rxc7 {[%clk 0:01:16]}  f4 {[%clk 0:00:13]} 36. exf4 {[%clk 0:01:15]}  gxf4 {[%clk 0:00:14]} 37. gxf4 {[%clk 0:00:20]}  Qxf4 {[%clk 0:00:12]} 38. Qa2 {[%clk 0:00:20]}  Qh2+ {[%clk 0:00:08]} 39. Kf1 {[%clk 0:00:20]}  Rg6 {[%clk 0:00:09]} 40. Ke1 {[%clk 0:00:11]}  Qxg2 {[%clk 0:00:08]} 41. Qe2 {[%clk 0:00:04]}  Qg1+ {[%clk 0:00:05]} 42. Qf1 {[%clk 0:00:04]}  Qxf2+ {[%clk 0:00:06]} 43. Qxf2 {[%clk 0:00:04]}  Rxf2 {[%clk 0:00:06]} 44. Kxf2 {[%clk 0:00:05]}  Rf6+ {[%clk 0:00:06]} 45. Ke3 {[%clk 0:00:05]}  Nc5 {[%clk 0:00:07]} 46. Rd8+ {[%clk 0:00:03]}  Rf8 {[%clk 0:00:07]} 47. Rxf8+ {[%clk 0:00:04]}  Kxf8 {[%clk 0:00:07]} 48. Rxc5 {[%clk 0:00:05]}  bxc5 {[%clk 0:00:07]} 49. b6 {[%clk 0:00:06]} 1-0


[Site "https://www.chess.com"]

[Event "Titled Tuesday Blitz July 13 2021"]
[White "Nguyen, Quoc Hy"]
[Black "harlem4brew"]
[WhiteFideId "12410853"]
[WhiteElo "1975"]
[BlackElo "2423"]
[Result "1-0"]
[Round "05"]
[TimeControl "180+1"]
[Date "2021.07.13"]
[WhiteClock "0:00:56"]
[BlackClock "0:01:27"]

1. d4 {[%clk 0:03:00]}  Nf6 {[%clk 0:02:57]} 2. c4 {[%clk 0:03:00]}  e6 {[%clk 0:02:58]} 3. Nc3 {[%clk 0:03:01]}  d5 {[%clk 0:02:57]} 4. cxd5 {[%clk 0:03:00]}  exd5 {[%clk 0:02:57]} 5. Bg5 {[%clk 0:03:00]}  Bb4 {[%clk 0:02:57]} 6. e3 {[%clk 0:02:59]}  h6 {[%clk 0:02:57]} 7. Bh4 {[%clk 0:02:57]}  Qd6 {[%clk 0:02:55]} 8. Bd3 {[%clk 0:02:53]}  c6 {[%clk 0:02:50]} 9. Ne2 {[%clk 0:02:53]}  O-O {[%clk 0:02:50]} 10. O-O {[%clk 0:02:53]}  Bg4 {[%clk 0:02:48]} 11. f3 {[%clk 0:02:52]}  Bh5 {[%clk 0:02:44]} 12. a3 {[%clk 0:02:51]}  Ba5 {[%clk 0:02:44]} 13. b4 {[%clk 0:02:48]}  Bc7 {[%clk 0:02:43]} 14. Bg3 {[%clk 0:02:48]}  Qe7 {[%clk 0:02:43]} 15. Qd2 {[%clk 0:02:46]}  Bg6 {[%clk 0:02:40]} 16. Bxg6 {[%clk 0:02:40]}  fxg6 {[%clk 0:02:41]} 17. e4 {[%clk 0:02:39]}  dxe4 {[%clk 0:02:37]} 18. fxe4 {[%clk 0:02:38]}  Bxg3 {[%clk 0:02:32]} 19. Nxg3 {[%clk 0:02:38]}  Nbd7 {[%clk 0:02:32]} 20. e5 {[%clk 0:02:35]}  Nd5 {[%clk 0:02:31]} 21. Nxd5 {[%clk 0:02:34]}  cxd5 {[%clk 0:02:32]} 22. Rac1 {[%clk 0:02:32]}  Nb6 {[%clk 0:02:31]} 23. Qd3 {[%clk 0:02:30]}  Rxf1+ {[%clk 0:02:27]} 24. Nxf1 {[%clk 0:02:30]}  Kh7 {[%clk 0:02:22]} 25. Ne3 {[%clk 0:02:25]}  Qd7 {[%clk 0:02:16]} 26. h4 {[%clk 0:02:18]}  Rc8 {[%clk 0:02:16]} 27. Rxc8 {[%clk 0:02:16]}  Qxc8 {[%clk 0:02:17]} 28. h5 {[%clk 0:02:16]}  Qe6 {[%clk 0:02:15]} 29. Kf2 {[%clk 0:02:10]}  Nc4 {[%clk 0:02:06]} 30. Nxc4 {[%clk 0:01:35]}  dxc4 {[%clk 0:02:06]} 31. Qe4 {[%clk 0:01:25]}  Qf5+ {[%clk 0:01:55]} 32. Qxf5 {[%clk 0:01:22]}  gxf5 {[%clk 0:01:56]} 33. e6 {[%clk 0:01:13]}  Kg8 {[%clk 0:01:54]} 34. d5 {[%clk 0:01:14]}  Kf8 {[%clk 0:01:53]} 35. b5 {[%clk 0:01:09]}  Ke7 {[%clk 0:01:48]} 36. Ke3 {[%clk 0:01:07]}  Kf6 {[%clk 0:01:45]} 37. Kd4 {[%clk 0:01:06]}  g5 {[%clk 0:01:41]} 38. hxg6 {[%clk 0:00:59]}  c3 {[%clk 0:01:40]} 39. Kxc3 {[%clk 0:00:58]}  Kxg6 {[%clk 0:01:40]} 40. d6 {[%clk 0:00:56]}  Kf6 {[%clk 0:01:34]} 41. d7 {[%clk 0:00:56]}  Ke7 {[%clk 0:01:34]} 42. Kd4 {[%clk 0:00:57]}  Kxe6 {[%clk 0:01:27]} 43. d8=Q {[%clk 0:00:57]}  a6 {[%clk 0:01:27]} 44. b6 {[%clk 0:00:56]} 1-0


[Site "https://www.chess.com"]

[Event "Titled Tuesday Blitz July 13 2021"]
[White "Omk124"]
[Black "Nguyen Hong Nhung"]
[BlackFideId "12412201"]
[WhiteElo "2594"]
[BlackElo "1661"]
[Result "0-1"]
[Round "05"]
[TimeControl "180+1"]
[Date "2021.07.13"]
[WhiteClock "0:02:01"]
[BlackClock "0:01:07"]

1. e4 {[%clk 0:03:00]}  c5 {[%clk 0:02:59]} 2. Nf3 {[%clk 0:02:59]}  e6 {[%clk 0:03:00]} 3. d4 {[%clk 0:02:59]}  cxd4 {[%clk 0:03:01]} 4. Nxd4 {[%clk 0:03:00]}  Nc6 {[%clk 0:03:01]} 5. Nc3 {[%clk 0:02:59]}  Qc7 {[%clk 0:03:01]} 6. g3 {[%clk 0:02:58]}  a6 {[%clk 0:02:58]} 7. Bg2 {[%clk 0:02:58]}  Nf6 {[%clk 0:02:58]} 8. O-O {[%clk 0:02:58]}  Bc5 {[%clk 0:02:48]} 9. Be3 {[%clk 0:02:57]}  Nxd4 {[%clk 0:02:38]} 10. Qxd4 {[%clk 0:02:58]}  Bxd4 {[%clk 0:02:36]} 11. Bxd4 {[%clk 0:02:58]}  d6 {[%clk 0:02:30]} 12. a4 {[%clk 0:02:58]}  O-O {[%clk 0:02:19]} 13. a5 {[%clk 0:02:57]}  Bd7 {[%clk 0:02:08]} 14. Rfd1 {[%clk 0:02:57]}  Bc6 {[%clk 0:02:05]} 15. Bb6 {[%clk 0:02:57]}  Qe7 {[%clk 0:02:05]} 16. Rd2 {[%clk 0:02:55]}  Nd7 {[%clk 0:02:05]} 17. Be3 {[%clk 0:02:54]}  f5 {[%clk 0:01:58]} 18. Rad1 {[%clk 0:02:50]}  Ne5 {[%clk 0:01:47]} 19. b3 {[%clk 0:02:47]}  Rad8 {[%clk 0:01:45]} 20. h4 {[%clk 0:02:38]}  fxe4 {[%clk 0:01:44]} 21. Bg5 {[%clk 0:02:37]}  Qf7 {[%clk 0:01:41]} 22. Bxd8 {[%clk 0:02:36]}  Rxd8 {[%clk 0:01:40]} 23. Rxd6 {[%clk 0:02:33]}  Rxd6 {[%clk 0:01:35]} 24. Rxd6 {[%clk 0:02:34]}  Nf3+ {[%clk 0:01:35]} 25. Kf1 {[%clk 0:02:29]}  Qf6 {[%clk 0:01:32]} 26. Nd1 {[%clk 0:02:20]}  Qa1 {[%clk 0:01:26]} 27. Ke2 {[%clk 0:02:15]}  Qxa5 {[%clk 0:01:21]} 28. c3 {[%clk 0:02:10]}  Qa2+ {[%clk 0:01:13]} 29. Ke3 {[%clk 0:02:10]}  Qxb3 {[%clk 0:01:11]} 30. Kf4 {[%clk 0:02:06]}  e5+ {[%clk 0:01:09]} 31. Kf5 {[%clk 0:02:02]}  Qf7+ {[%clk 0:01:08]} 32. Kg4 {[%clk 0:02:01]}  Bd7+ {[%clk 0:01:07]} 0-1


[Site "https://www.chess.com"]